bitfinex/quotes_SOLUSD_20220129
["timestamp","ask_amount","ask_price","bid_price","bid_amount"]
[1643478125235,0.25,94.572,94.523,6.25]
[1643478125637,33.98872843,94.574,94.523,6.25]
[1643478127740,33.98872843,94.574,94.524,2.24735243]
[1643478128039,33.98872843,94.574,94.534,6.0]
[1643478128240,33.98872843,94.574,94.535,0.25]
[1643478128773,0.25,94.573,94.523,6.0]
[1643478129578,242.123,94.65,94.524,2.24735243]
[1643478129771,15.867,94.63,94.525,24.9411]
[1643478129974,15.867,94.63,94.534,6.0]
[1643478130174,15.867,94.63,94.535,6.0]
[1643478130372,15.867,94.63,94.536,31.1911]
[1643478130574,39.88275054,94.629,94.545,6.0]
[1643478130773,39.88275054,94.629,94.546,0.25]
[1643478130973,39.88275054,94.629,94.547,6.0]
[1643478131173,0.25,94.628,94.547,6.0]
[1643478131574,0.25,94.628,94.556,6.0]
[1643478132178,0.25,94.628,94.557,0.25]
[1643478132573,0.25,94.628,94.556,6.0]
[1643478132772,0.25,94.628,94.557,0.25]
[1643478133979,0.25,94.628,94.547,6.0]
[1643478134176,0.25,94.628,94.548,0.25]
[1643478134378,0.25,94.628,94.548,24.7889]
[1643478134578,0.25,94.628,94.558,6.0]
[1643478134777,0.25,94.628,94.559,0.25]
[1643478136483,0.25,94.628,94.558,6.0]
[1643478137780,0.25,94.628,94.559,0.25]
[1643478138379,0.25,94.628,94.558,5.75]
[1643478140381,0.25,94.628,94.559,0.25]
[1643478141180,0.25,94.628,94.559,24.513]
[1643478141688,0.25,94.628,94.569,6.0]
[1643478143180,0.25,94.628,94.57,0.25]
[1643478145680,0.25,94.628,94.571,2.24724471]
[1643478145880,0.25,94.628,94.572,0.25]
[1643478146082,0.25,94.628,94.581,6.0]
[1643478146283,0.25,94.628,94.582,0.25]
[1643478146681,0.25,94.628,94.583,6.0]
[1643478146884,0.25,94.628,94.584,0.25]
[1643478153695,0.25,94.628,94.583,6.0]
[1643478154918,0.25,94.628,94.584,0.25]
[1643478157922,0.25,94.628,94.585,2.24724471]
[1643478158222,0.25,94.628,94.595,6.0]
[1643478163329,6.0,94.649,94.595,6.0]
[1643478163830,0.25,94.648,94.595,6.0]
[1643478164129,42.89088004,94.648,94.595,6.0]
[1643478164531,24.6701,94.647,94.595,6.0]
[1643478164935,0.25,94.646,94.595,6.0]
[1643478166332,0.25,94.646,94.585,2.24724471]
[1643478166533,6.0,94.637,94.54,15.14]
[1643478166734,24.131,94.636,94.571,6.0]
[1643478166936,24.381,94.636,94.569,6.0]
[1643478167334,24.381,94.636,94.57,0.25]
[1643478167934,24.381,94.636,94.556,2.24724471]
[1643478168135,6.0,94.626,94.535,2.24724471]
[1643478168336,24.7722,94.625,94.535,2.24724471]
[1643478168534,6.0,94.615,94.534,22.616]
[1643478168740,24.5222,94.614,94.534,22.616]
[1643478168935,24.5222,94.614,94.535,44.62866656]
[1643478168936,23.25497967,94.613,94.535,44.62866656]
[1643478169338,6.0,94.603,94.536,0.25]
[1643478169537,23.9744,94.602,94.536,0.25]
[1643478169738,24.2244,94.602,94.536,2.49724471]
[1643478169938,6.0,94.592,94.536,2.49724471]
[1643478170141,24.2244,94.602,94.536,2.49724471]
[1643478171541,24.2244,94.602,94.546,6.0]
[1643478171940,24.2244,94.602,94.547,0.25]
[1643478172746,6.0,94.592,94.547,7.05228816]
[1643478172941,35.0970829,94.591,94.547,7.05228816]
[1643478173143,35.3470829,94.591,94.547,0.25]
[1643478173943,35.3470829,94.591,94.537,0.25]
[1643478174346,35.3470829,94.591,94.538,2.24724471]
[1643478174746,35.3470829,94.591,94.539,0.25]
[1643478175147,35.3470829,94.591,94.54,2.24724471]
[1643478175348,35.3470829,94.591,94.544,6.0]
[1643478175546,35.3470829,94.591,94.541,0.25]
[1643478175747,35.3470829,94.591,94.545,2.24724471]
[1643478176246,35.0970829,94.591,94.545,2.24724471]
[1643478176448,0.25,94.59,94.532,45.34159452]
[1643478176648,0.25,94.59,94.544,6.0]
[1643478177648,35.0970829,94.591,94.534,2.24724471]
[1643478177854,59.2644829,94.591,94.534,2.24724471]
[1643478178052,0.25,94.59,94.534,2.24724471]
[1643478178450,0.25,94.59,94.513,2.24724471]
[1643478178652,6.0,94.581,94.522,6.0]
[1643478178851,6.0,94.581,94.499,44.09555686]
[1643478178852,0.25,94.58,94.499,44.09555686]
[1643478179050,23.4901,94.58,94.491,2.24724471]
[1643478179251,23.4901,94.58,94.501,6.0]
[1643478179451,23.4901,94.58,94.51,6.0]
[1643478179851,23.4901,94.58,94.511,0.25]
[1643478180052,23.4901,94.58,94.512,6.0]
[1643478180254,23.4901,94.58,94.513,0.25]
[1643478180554,23.4901,94.58,94.514,6.0]
[1643478180752,23.4901,94.58,94.515,0.25]
[1643478181454,23.4901,94.58,94.516,2.24724471]
[1643478181861,23.4901,94.58,94.526,6.0]
[1643478182456,23.4901,94.58,94.515,0.25]
[1643478182658,23.4901,94.58,94.52,6.0]
[1643478184456,23.4901,94.58,94.512,6.0]
[1643478184861,23.4901,94.58,94.513,0.25]
[1643478186158,23.4901,94.58,94.517,6.0]
[1643478188063,23.4901,94.58,94.512,6.0]
[1643478188462,23.4901,94.58,94.513,2.24724471]
[1643478188861,2.95669142,94.579,94.503,6.0]
[1643478189162,6.0,94.569,94.482,1.46450219]
[1643478189360,24.3971,94.568,94.469,33.01817147]
[1643478189565,6.0,94.558,94.469,25.24520219]
[1643478189863,6.0,94.558,94.468,1.46450219]
[1643478189864,54.89837681,94.557,94.468,1.46450219]
[1643478190061,6.0,94.55,94.468,1.46450219]
[1643478190260,6.0,94.55,94.461,43.14444234]
[1643478190261,6.0,94.547,94.469,0.25]
[1643478190468,0.25,94.546,94.471,6.0]
[1643478190667,29.5263,94.546,94.477,6.0]
[1643478190864,29.5263,94.546,94.471,6.0]
[1643478191764,29.5263,94.546,94.467,6.0]
[1643478192365,29.5263,94.546,94.468,2.24724471]
[1643478192564,23.5263,94.546,94.478,6.0]
[1643478192764,35.0970829,94.535,94.478,6.0]
[1643478193166,0.25,94.534,94.478,6.0]
[1643478193364,0.25,94.534,94.479,6.0]
[1643478193565,24.7278,94.534,94.479,6.0]
[1643478195779,35.0970829,94.535,94.48,2.50535094]
[1643478196198,35.0970829,94.535,94.49,6.0]
[1643478196399,35.0970829,94.535,94.491,37.33431944]
[1643478196601,35.0970829,94.535,94.491,45.58967038]
[1643478197000,35.0970829,94.535,94.492,2.25535094]
[1643478197399,35.0970829,94.535,94.502,6.0]
[1643478197700,35.0970829,94.535,94.493,0.25]
[1643478198305,35.0970829,94.535,94.487,0.25]
[1643478198503,0.25,94.534,94.486,6.0]
[1643478198701,35.0970829,94.535,94.487,0.25]
[1643478198901,35.0970829,94.535,94.486,6.0]
[1643478200104,0.25,94.534,94.486,6.0]
[1643478201304,35.0970829,94.535,94.487,2.50535094]
[1643478201505,35.0970829,94.535,94.497,6.0]
[1643478201905,35.0970829,94.535,94.498,0.25]
[1643478202104,35.0970829,94.535,94.498,6.25]
[1643478204313,35.0970829,94.535,94.498,6.0]
[1643478204510,0.25,94.534,94.499,6.0]
[1643478205009,0.25,94.534,94.488,2.25535094]
[1643478205209,23.4765,94.534,94.498,6.0]
[1643478205813,35.0970829,94.535,94.498,6.0]
[1643478206013,35.0970829,94.535,94.502,6.0]
[1643478207211,0.25,94.534,94.502,6.0]
[1643478207613,0.25,94.534,94.488,2.25535094]
[1643478207814,0.25,94.534,94.477,1.46450219]
[1643478208011,25.1802,94.534,94.464,1.46450219]
[1643478208212,25.1802,94.534,94.462,1.46450219]
[1643478208411,25.1802,94.534,94.461,1.46450219]
[1643478208614,25.1802,94.534,94.441,2.2553511]
[1643478208615,25.1802,94.534,94.464,45.35351013]
[1643478208814,24.9302,94.534,94.464,45.35351013]
[1643478209013,24.9302,94.534,94.474,6.0]
[1643478210215,6.0,94.524,94.474,6.0]
[1643478210418,6.0,94.524,94.473,6.0]
[1643478210618,0.25,94.523,94.473,6.0]
[1643478214829,0.25,94.523,94.474,0.25]
[1643478215047,0.25,94.523,94.473,6.0]
[1643478215853,0.25,94.523,94.474,0.25]
[1643478216055,6.0,94.524,94.474,0.25]
[1643478217253,0.25,94.523,94.474,0.25]
[1643478218058,0.25,94.523,94.475,6.0]
[1643478218256,0.25,94.523,94.476,0.25]
[1643478218963,0.25,94.523,94.473,6.0]
[1643478219158,0.25,94.523,94.478,6.0]
[1643478219357,0.25,94.523,94.479,0.25]
[1643478220859,6.0,94.524,94.473,6.0]
[1643478221064,6.0,94.524,94.479,6.0]
[1643478221363,0.25,94.523,94.479,6.0]
[1643478221565,24.9302,94.534,94.478,6.0]
[1643478221764,0.25,94.523,94.478,6.0]
[1643478221966,0.25,94.523,94.465,1.46450219]
[1643478222162,0.25,94.523,94.463,24.1457]
[1643478222163,0.25,94.523,94.463,25.61020219]
[1643478222361,23.33,94.523,94.463,24.1457]
[1643478222762,23.33,94.523,94.464,0.25]
[1643478223162,23.33,94.523,94.473,6.0]
[1643478223365,0.25,94.523,94.474,0.25]
[1643478223564,0.25,94.523,94.475,6.0]
[1643478223762,22.8064,94.534,94.475,6.0]
[1643478223763,23.0564,94.534,94.475,6.0]
[1643478223965,23.0564,94.534,94.484,6.0]
[1643478226466,35.0970829,94.535,94.485,5.44956877]
[1643478226669,35.0970829,94.535,94.494,6.0]
[1643478226868,35.0970829,94.535,94.495,6.0]
[1643478227469,35.0970829,94.535,94.484,6.0]
[1643478227670,35.0970829,94.535,94.474,24.13280219]
[1643478227671,35.0970829,94.535,94.475,0.25]
[1643478227871,0.25,94.534,94.484,6.0]
[1643478228071,0.25,94.534,94.475,0.25]
[1643478228271,24.6376,94.534,94.467,1.46450219]
[1643478228771,24.6376,94.534,94.477,6.0]
[1643478228972,24.6376,94.534,94.475,6.0]
[1643478230175,24.6376,94.534,94.476,6.0]
[1643478231980,35.0970829,94.535,94.477,6.0]
[1643478232377,35.0970829,94.535,94.469,1.46450219]
[1643478232576,23.8499,94.534,94.479,6.0]
[1643478232780,6.0,94.524,94.461,1.46450219]
[1643478232975,6.0,94.524,94.476,6.0]
[1643478233177,0.25,94.523,94.476,6.0]
[1643478233377,6.0,94.524,94.476,6.0]
[1643478233579,0.25,94.523,94.477,38.46863258]
[1643478233807,0.25,94.523,94.478,0.25]
[1643478234006,0.25,94.523,94.487,6.0]
[1643478234210,0.25,94.523,94.477,38.46863258]
[1643478234411,6.0,94.524,94.478,0.25]
[1643478234609,6.0,94.524,94.487,6.0]
[1643478234810,0.25,94.523,94.487,6.0]
[1643478235209,0.25,94.523,94.477,38.46863258]
[1643478236011,0.25,94.523,94.455,23.0718]
[1643478236012,0.25,94.523,94.47,1.46450219]
[1643478236211,23.9008,94.534,94.48,6.0]
[1643478236410,0.25,94.533,94.481,0.25]
[1643478236610,0.25,94.533,94.48,6.0]
[1643478236813,0.25,94.533,94.481,0.25]
[1643478237013,23.9008,94.534,94.49,40.7821425]
[1643478237212,35.0970829,94.535,94.49,40.7821425]
[1643478237410,0.25,94.533,94.5,6.0]
[1643478237611,35.0970829,94.535,94.501,0.25]
[1643478238014,35.0970829,94.535,94.5,6.0]
[1643478238211,0.25,94.534,94.49,40.7821425]
[1643478238612,0.25,94.534,94.491,0.25]
[1643478238812,35.0970829,94.535,94.491,0.25]
[1643478239012,35.0970829,94.535,94.5,6.0]
[1643478239714,0.25,94.534,94.491,0.25]
[1643478239914,0.25,94.534,94.481,1.46450219]
[1643478240114,0.25,94.534,94.456,2.25541177]
[1643478240115,0.25,94.534,94.491,6.0]
[1643478240413,0.25,94.534,94.477,1.46450219]
[1643478240613,0.25,94.534,94.49,6.0]
[1643478241014,0.25,94.534,94.489,42.63431504]
[1643478243620,35.0970829,94.535,94.489,42.63431504]
[1643478244014,35.0970829,94.535,94.475,1.46450219]
[1643478244215,35.0970829,94.535,94.472,1.46450219]
[1643478244416,35.0970829,94.535,94.47,1.46450219]
[1643478244615,35.0970829,94.535,94.48,6.0]
[1643478244818,0.25,94.534,94.48,6.0]
[1643478245016,0.25,94.534,94.481,39.51238821]
[1643478245416,0.25,94.534,94.491,6.0]
[1643478246117,0.25,94.534,94.481,39.51238821]
[1643478246618,0.25,94.534,94.491,6.0]
[1643478246817,35.0970829,94.535,94.491,6.0]
[1643478248224,0.25,94.534,94.491,6.0]
[1643478249426,0.25,94.534,94.473,1.46450219]
[1643478249625,0.25,94.534,94.47,1.46450219]
[1643478249828,0.25,94.534,94.477,6.0]
[1643478250028,0.25,94.534,94.481,6.0]
[1643478250427,0.25,94.534,94.482,0.25]
[1643478250626,0.25,94.534,94.485,6.0]
[1643478254053,6.0,94.525,94.473,1.46450219]
[1643478254254,0.25,94.524,94.458,1.46450219]
[1643478254554,6.25,94.524,94.457,6.0]
[1643478254752,6.25,94.524,94.456,6.0]
[1643478254953,6.25,94.524,94.458,40.7198778]
[1643478255354,23.7161,94.523,94.458,40.7198778]
[1643478255552,6.0,94.513,94.458,40.7198778]
[1643478255752,0.25,94.512,94.458,40.7198778]
[1643478256155,0.25,94.512,94.468,6.0]
[1643478256954,0.25,94.522,94.468,6.0]
[1643478258256,35.0970829,94.535,94.468,6.0]
[1643478258857,35.0970829,94.535,94.469,6.0]
[1643478259758,0.25,94.534,94.469,6.0]
[1643478260560,35.0970829,94.535,94.469,6.0]
[1643478261759,0.25,94.534,94.469,6.0]
[1643478262359,0.25,94.534,94.47,0.25]
[1643478262761,0.25,94.534,94.47,22.9994]
[1643478262963,35.0970829,94.535,94.47,22.9994]
[1643478263162,0.25,94.534,94.48,6.0]
[1643478263362,35.0970829,94.535,94.481,0.25]
[1643478264965,35.0970829,94.535,94.48,6.0]
[1643478265164,22.6492,94.534,94.48,6.0]
[1643478265364,22.8992,94.534,94.48,6.0]
[1643478267971,15.14,94.52,94.458,0.00450219]
[1643478268171,130.3346,94.519,94.45,0.00450219]
[1643478268369,0.25,94.518,94.416,2.93343954]
[1643478268569,6.0,94.509,94.398,2.93343954]
[1643478268767,105.8,94.499,94.392,4.28174639]
[1643478268970,30.79877681,94.497,94.393,40.98868358]
[1643478269168,6.0,94.489,94.394,4.28174639]
[1643478269468,6.0,94.487,94.394,4.28174639]
[1643478269669,6.0,94.48,94.394,4.28174639]
[1643478269868,24.9834,94.479,94.394,4.28174639]
[1643478270068,30.9834,94.479,94.394,4.28174639]
[1643478270268,31.028,94.51,94.405,105.8]
[1643478270467,31.028,94.51,94.406,0.1]
[1643478270670,31.028,94.51,94.415,6.0]
[1643478270867,22.5765,94.509,94.424,112.9]
[1643478271068,23.474,94.549,94.424,112.9]
[1643478271069,15.14,94.52,94.434,6.0]
[1643478271269,15.14,94.56,94.436,63.42]
[1643478271471,15.14,94.56,94.438,63.42]
[1643478271670,15.14,94.56,94.446,6.0]
[1643478271872,34.36717619,94.559,94.455,0.30228007]
[1643478272170,34.36717619,94.559,94.458,105.8]
[1643478272371,34.36717619,94.559,94.459,0.25]
[1643478272570,34.36717619,94.559,94.468,6.0]
[1643478272770,34.36717619,94.559,94.469,0.25]
[1643478272971,34.36717619,94.559,94.469,6.25]
[1643478273172,0.25,94.558,94.47,6.0]
[1643478273371,34.36717619,94.559,94.48,39.32064318]
[1643478273571,34.36717619,94.559,94.49,6.0]
[1643478273871,34.36717619,94.559,94.48,39.32064318]
[1643478274072,34.36717619,94.559,94.481,24.1941]
[1643478274272,34.36717619,94.559,94.49,6.0]
[1643478274473,34.36717619,94.559,94.491,6.0]
[1643478274675,0.25,94.558,94.491,6.0]
[1643478275174,15.14,94.56,94.491,6.0]
[1643478275175,22.5765,94.568,94.492,105.8]
[1643478275476,15.14,94.59,94.494,105.8]
[1643478275676,23.7394,94.589,94.502,6.0]
[1643478275874,23.7394,94.589,94.504,6.0]
[1643478276273,45.48389044,94.588,94.505,24.8654]
[1643478276473,45.48389044,94.588,94.505,24.6154]
[1643478276677,6.0,94.578,94.515,6.0]
[1643478276875,6.0,94.578,94.516,6.98349711]
[1643478277475,6.0,94.578,94.517,23.126]
[1643478277876,0.25,94.577,94.517,23.126]
[1643478278279,0.25,94.587,94.517,23.126]
[1643478278710,0.25,94.587,94.516,6.98349711]
[1643478279078,6.0,94.578,94.516,6.98349711]
[1643478279279,0.25,94.577,94.516,6.98349711]
[1643478279681,6.0,94.578,94.516,6.98349711]
[1643478279881,6.0,94.578,94.517,0.25]
[1643478280082,6.0,94.578,94.526,6.0]
[1643478280281,6.0,94.578,94.527,0.25]
[1643478280481,6.0,94.578,94.527,6.25]
[1643478280681,6.0,94.578,94.528,6.0]
[1643478280884,6.0,94.578,94.529,0.25]
[1643478281284,2.93669083,94.622,94.529,6.25]
[1643478281485,2.93669083,94.622,94.536,0.32382559]
[1643478281682,23.2756,94.629,94.536,0.32382559]
[1643478281884,2.93669083,94.642,94.541,63.42]
[1643478282184,2.93669083,94.652,94.551,6.0]
[1643478282382,40.61587443,94.635,94.552,32.73757808]
[1643478282581,40.61587443,94.635,94.562,6.0]
[1643478282782,0.25,94.63,94.563,0.25]
[1643478282984,0.25,94.63,94.563,118.89]
[1643478283183,0.25,94.63,94.563,124.89]
[1643478283782,24.462,94.656,94.563,188.31]
[1643478283984,24.462,94.656,94.563,124.89]
[1643478284683,31.002,94.66,94.563,124.89]
[1643478284883,46.04191104,94.651,94.565,105.8]
[1643478285083,15.14,94.69,94.576,169.22]
[1643478285282,15.14,94.69,94.575,6.0]
[1643478285283,15.14,94.69,94.577,0.25]
[1643478285483,15.14,94.68,94.577,2.50956097]
[1643478285885,46.3121,94.679,94.587,6.0]
[1643478286087,41.09235841,94.637,94.588,19.81656221]
[1643478286284,41.09235841,94.637,94.588,20.06656221]
[1643478287888,41.09235841,94.637,94.588,22.32612318]
[1643478288692,41.09235841,94.637,94.588,20.06656221]
[1643478289087,41.09235841,94.637,94.588,22.32612318]
[1643478289291,41.09235841,94.637,94.588,20.06656221]
[1643478289689,41.09235841,94.637,94.589,2.25956097]
[1643478289889,0.25,94.63,94.588,6.0]
[1643478290090,0.25,94.63,94.589,6.0]
[1643478290391,0.25,94.63,94.589,6.25]
[1643478290590,0.25,94.63,94.589,0.25]
[1643478291089,0.25,94.636,94.589,0.25]
[1643478292896,0.25,94.636,94.589,2.50956097]
[1643478293093,0.25,94.636,94.599,6.0]
[1643478293295,0.25,94.636,94.6,0.25]
[1643478294118,0.25,94.636,94.588,6.0]
[1643478294317,0.25,94.636,94.54,15.14]
[1643478294518,24.0764,94.636,94.551,2.25951497]
[1643478294717,0.25,94.636,94.552,22.8929]
[1643478294920,0.25,94.636,94.561,6.0]
[1643478295119,0.25,94.636,94.562,6.0]
[1643478295323,0.25,94.636,94.562,44.74718578]
[1643478295521,0.25,94.636,94.562,47.00670075]
[1643478295722,0.25,94.636,94.567,63.42]
[1643478295923,0.25,94.636,94.563,2.25951497]
[1643478296222,0.25,94.636,94.576,6.0]
[1643478296623,0.25,94.636,94.578,6.0]
[1643478296821,0.25,94.636,94.579,0.25]
[1643478298022,24.1762,94.636,94.574,0.25]
[1643478299028,24.1762,94.636,94.574,6.25]
[1643478299223,24.1762,94.636,94.574,0.25]
[1643478300627,24.1762,94.636,94.564,0.25]
[1643478300828,24.1762,94.636,94.564,106.05]
[1643478301027,24.1762,94.636,94.564,105.8]
[1643478301928,24.1762,94.636,94.574,6.0]
[1643478302328,24.1762,94.636,94.575,0.25]
[1643478302532,24.1762,94.636,94.575,2.50951497]
[1643478302735,23.9262,94.636,94.575,2.50951497]
[1643478302930,23.9262,94.636,94.585,6.0]
[1643478303332,23.9262,94.636,94.586,0.25]
[1643478303732,41.09235841,94.637,94.586,0.25]
[1643478304136,0.25,94.636,94.586,0.25]
[1643478304736,41.09235841,94.637,94.586,0.25]
[1643478305936,23.5077,94.659,94.587,2.25951497]
[1643478306136,23.5077,94.659,94.597,6.0]
[1643478306337,23.5077,94.659,94.598,0.25]
[1643478306939,43.26542192,94.658,94.598,0.25]
[1643478307141,43.26542192,94.658,94.58,6.0]
[1643478307641,6.0,94.648,94.57,22.5406]
[1643478307841,6.0,94.648,94.562,2.25951497]
[1643478307842,24.9677,94.647,94.562,2.25951497]
[1643478308042,6.0,94.637,94.547,2.25951497]
[1643478308240,15.14,94.63,94.547,2.25951497]
[1643478308442,24.7177,94.629,94.507,2.25951497]
[1643478308640,6.0,94.62,94.507,2.25951497]
[1643478308840,31.011,94.61,94.507,2.25951497]
[1643478309043,21.14,94.6,94.517,6.0]
[1643478309245,0.25,94.599,94.517,6.0]
[1643478309444,6.25,94.599,94.517,6.0]
[1643478309642,22.63043779,94.598,94.517,6.0]
[1643478309842,6.0,94.59,94.517,6.0]
[1643478310043,6.0,94.588,94.494,49.7256]
[1643478310242,23.2266,94.587,94.494,49.7256]
[1643478310443,23.2266,94.587,94.495,2.25361778]
[1643478310643,6.0,94.577,94.495,108.05361778]
[1643478310944,0.25,94.576,94.496,34.77858653]
[1643478311142,0.25,94.576,94.496,37.03220431]
[1643478311344,0.25,94.576,94.506,6.0]
[1643478311543,0.25,94.576,94.507,6.0]
[1643478311747,0.25,94.576,94.507,8.50361778]
[1643478311946,0.25,94.576,94.507,6.25]
[1643478312147,0.25,94.586,94.508,2.25361778]
[1643478312347,6.0,94.577,94.508,2.25361778]
[1643478312866,0.25,94.576,94.508,2.25361778]
[1643478313064,0.25,94.576,94.518,6.0]
[1643478313464,6.0,94.577,94.519,2.50361778]
[1643478313869,22.9766,94.587,94.519,2.50361778]
[1643478314066,22.9766,94.587,94.529,6.0]
[1643478314868,6.0,94.577,94.529,6.0]
[1643478315668,6.0,94.577,94.53,0.25]
[1643478316268,22.9766,94.587,94.53,0.25]
[1643478316469,22.9766,94.587,94.519,2.25361778]
[1643478316668,0.25,94.586,94.519,2.25361778]
[1643478316867,6.0,94.577,94.519,2.25361778]
[1643478317267,0.25,94.576,94.519,2.25361778]
[1643478317871,0.25,94.576,94.52,0.25]
[1643478318269,0.25,94.576,94.519,2.25361778]
[1643478318469,0.25,94.576,94.496,2.25361778]
[1643478318668,0.25,94.576,94.498,0.25]
[1643478318869,0.25,94.576,94.504,6.0]
[1643478319270,24.7069,94.576,94.505,0.25]
[1643478319672,6.0,94.566,94.505,0.25]
[1643478319870,37.26396065,94.565,94.505,0.25]
[1643478320071,6.0,94.555,94.505,0.25]
[1643478320273,0.25,94.554,94.503,0.25]
[1643478320576,6.25,94.554,94.503,0.25]
[1643478323679,6.25,94.554,94.502,6.0]
[1643478324180,6.25,94.554,94.498,6.0]
[1643478324379,6.25,94.554,94.499,0.25]
[1643478327679,6.0,94.554,94.5,2.25361778]
[1643478327879,0.25,94.553,94.501,0.25]
[1643478328080,0.25,94.553,94.51,6.0]
[1643478328281,24.1265,94.553,94.51,6.0]
[1643478328479,24.1265,94.553,94.501,0.25]
[1643478329080,24.1265,94.553,94.499,0.25]
[1643478332489,24.1265,94.553,94.488,112.9]
[1643478332682,24.1265,94.553,94.465,20.58477481]
[1643478332683,6.0,94.543,94.465,2.25361778]
[1643478332881,23.215,94.542,94.44,190.1]
[1643478333083,48.0958,94.542,94.45,6.0]
[1643478333484,48.0958,94.542,94.451,50.89150073]
[1643478333681,48.0958,94.542,94.451,51.14150073]
[1643478333882,28.88189906,94.531,94.451,51.14150073]
[1643478334083,23.7456,94.53,94.451,50.89150073]
[1643478334684,6.0,94.52,94.451,50.89150073]
[1643478334882,24.5296,94.519,94.451,50.89150073]
[1643478335484,6.0,94.509,94.451,50.89150073]
[1643478335782,0.25,94.508,94.452,0.25]
[1643478336182,0.25,94.508,94.451,50.89150073]
[1643478336183,0.25,94.508,94.451,6.0]
[1643478336382,0.25,94.508,94.399,2.93343954]
[1643478336383,6.25,94.508,94.44,6.0]
[1643478336584,6.25,94.508,94.424,0.1]
[1643478336783,47.0232,94.507,94.409,0.1]
[1643478337183,0.25,94.506,94.409,34.89168047]
[1643478337382,6.0,94.497,94.41,0.1]
[1643478337585,57.73269075,94.496,94.41,2.35361778]
[1643478337785,57.98269075,94.496,94.419,6.0]
[1643478337983,57.98269075,94.496,94.42,6.0]
[1643478338186,57.98269075,94.496,94.42,8.25361778]
[1643478338389,57.98269075,94.496,94.421,2.25361778]
[1643478338589,57.98269075,94.496,94.431,6.0]
[1643478338789,57.98269075,94.496,94.432,0.25]
[1643478338991,6.0,94.486,94.432,0.25]
[1643478339390,23.0568,94.485,94.432,0.25]
[1643478339790,22.8068,94.485,94.432,0.25]
[1643478340090,22.8068,94.485,94.42,0.25]
[1643478340490,22.8068,94.485,94.42,8.50361778]
[1643478340690,22.8068,94.485,94.421,2.25361778]
[1643478340893,22.8068,94.485,94.421,2.50361778]
[1643478341093,22.8068,94.485,94.431,6.0]
[1643478341292,22.8068,94.485,94.432,0.25]
[1643478341892,6.0,94.475,94.411,0.1]
[1643478342096,6.0,94.475,94.41,0.1]
[1643478342292,0.25,94.474,94.41,0.1]
[1643478342797,25.0207,94.474,94.41,0.35]
[1643478343095,6.0,94.464,94.41,0.35]
[1643478343294,22.9683,94.463,94.408,6.0]
[1643478343494,6.0,94.453,94.393,6.0]
[1643478343894,0.25,94.452,94.394,0.25]
[1643478344193,0.25,94.452,94.394,42.81696694]
[1643478344493,0.25,94.452,94.404,6.0]
[1643478344893,0.25,94.461,94.405,0.25]